[Event "Titled Tuesday Blitz August 16 Late 2022"]
[White "Holt, Conrad"]
[Black "Kravtsiv, Martyn"]
[WhiteFideId "2034387"]
[BlackFideId "14113147"]
[WhiteElo "2586"]
[BlackElo "2694"]
[Result "1-0"]
[Round "09"]
[TimeControl "180+1"]
[Date "2022.08.16"]
[WhiteClock "0:00:04"]
[BlackClock "0:00:11"]

1. d4 {[%clk 0:02:57]}  d5 {[%clk 0:02:59]} 2. c4 {[%clk 0:02:57]}  e6 {[%clk 0:02:59]} 3. Nc3 {[%clk 0:02:57]}  Bb4 {[%clk 0:02:59]} 4. a3 {[%clk 0:02:55]}  Bxc3+ {[%clk 0:02:58]} 5. bxc3 {[%clk 0:02:56]}  Nf6 {[%clk 0:02:58]} 6. e3 {[%clk 0:02:56]}  O-O {[%clk 0:02:58]} 7. cxd5 {[%clk 0:02:51]}  exd5 {[%clk 0:02:57]} 8. Bd3 {[%clk 0:02:51]}  c5 {[%clk 0:02:57]} 9. Ne2 {[%clk 0:02:52]}  b6 {[%clk 0:02:57]} 10. O-O {[%clk 0:02:51]}  Ba6 {[%clk 0:02:58]} 11. f3 {[%clk 0:02:51]}  Bxd3 {[%clk 0:02:54]} 12. Qxd3 {[%clk 0:02:51]}  Re8 {[%clk 0:02:54]} 13. g4 {[%clk 0:02:49]}  Nc6 {[%clk 0:02:49]} 14. Ra2 {[%clk 0:02:47]}  Na5 {[%clk 0:02:32]} 15. Ng3 {[%clk 0:02:45]}  Rc8 {[%clk 0:02:31]} 16. Rg2 {[%clk 0:02:37]}  cxd4 {[%clk 0:02:23]} 17. cxd4 {[%clk 0:02:37]}  Qc7 {[%clk 0:02:22]} 18. g5 {[%clk 0:02:36]}  Nd7 {[%clk 0:02:22]} 19. Qf5 {[%clk 0:02:31]}  Nb3 {[%clk 0:02:13]} 20. Bb2 {[%clk 0:02:19]}  Rxe3 {[%clk 0:01:54]} 21. Qxd5 {[%clk 0:02:18]}  Qc6 {[%clk 0:01:44]} 22. Qxc6 {[%clk 0:02:08]}  Rxc6 {[%clk 0:01:45]} 23. Nf5 {[%clk 0:02:07]}  Re8 {[%clk 0:01:41]} 24. Nxg7 {[%clk 0:02:05]}  Rec8 {[%clk 0:01:29]} 25. Nf5 {[%clk 0:02:02]}  Kf8 {[%clk 0:01:30]} 26. d5 {[%clk 0:01:43]}  Rc2 {[%clk 0:01:29]} 27. Bg7+ {[%clk 0:01:40]}  Kg8 {[%clk 0:01:29]} 28. Re1 {[%clk 0:01:37]}  Rc1 {[%clk 0:01:22]} 29. Re2 {[%clk 0:01:28]}  Rxe1+ {[%clk 0:01:21]} 30. Rxe1 {[%clk 0:01:27]}  Rc1 {[%clk 0:01:22]} 31. Rxc1 {[%clk 0:01:19]}  Nxc1 {[%clk 0:01:23]} 32. Kf2 {[%clk 0:01:17]}  a5 {[%clk 0:01:16]} 33. Ke3 {[%clk 0:01:15]}  b5 {[%clk 0:01:16]} 34. Bc3 {[%clk 0:01:07]}  Nb3 {[%clk 0:01:15]} 35. h4 {[%clk 0:01:05]}  Nb6 {[%clk 0:01:10]} 36. Ke4 {[%clk 0:01:02]}  Kf8 {[%clk 0:01:06]} 37. Nd4 {[%clk 0:00:58]}  Nc5+ {[%clk 0:01:05]} 38. Kf5 {[%clk 0:00:51]}  b4 {[%clk 0:00:42]} 39. axb4 {[%clk 0:00:51]}  Nxd5 {[%clk 0:00:42]} 40. bxc5 {[%clk 0:00:50]}  Nxc3 {[%clk 0:00:42]} 41. c6 {[%clk 0:00:43]}  Ke7 {[%clk 0:00:42]} 42. Ke5 {[%clk 0:00:43]}  a4 {[%clk 0:00:41]} 43. Nc2 {[%clk 0:00:24]}  Nb5 {[%clk 0:00:40]} 44. Nb4 {[%clk 0:00:17]}  a3 {[%clk 0:00:39]} 45. Na2 {[%clk 0:00:17]}  Na7 {[%clk 0:00:33]} 46. Kd5 {[%clk 0:00:17]}  Kd8 {[%clk 0:00:33]} 47. Kd6 {[%clk 0:00:16]}  Nc8+ {[%clk 0:00:30]} 48. Ke5 {[%clk 0:00:15]}  Kc7 {[%clk 0:00:26]} 49. Kf6 {[%clk 0:00:14]}  Nd6 {[%clk 0:00:26]} 50. Nb4 {[%clk 0:00:13]}  Kb6 {[%clk 0:00:23]} 51. Kg7 {[%clk 0:00:13]}  Kc5 {[%clk 0:00:21]} 52. Na2 {[%clk 0:00:12]}  Kc4 {[%clk 0:00:22]} 53. Kxh7 {[%clk 0:00:10]}  Kb3 {[%clk 0:00:22]} 54. h5 {[%clk 0:00:06]}  Kxa2 {[%clk 0:00:21]} 55. g6 {[%clk 0:00:06]}  Kb3 {[%clk 0:00:19]} 56. g7 {[%clk 0:00:06]}  a2 {[%clk 0:00:19]} 57. g8=Q {[%clk 0:00:06]}  a1=Q {[%clk 0:00:19]} 58. Qb8+ {[%clk 0:00:06]}  Kc4 {[%clk 0:00:18]} 59. Qxd6 {[%clk 0:00:06]}  Qb1+ {[%clk 0:00:18]} 60. Kg7 {[%clk 0:00:06]}  Qf1 {[%clk 0:00:14]} 61. Qf6 {[%clk 0:00:04]}  Qh3 {[%clk 0:00:12]} 62. h6 {[%clk 0:00:04]}  Kc5 {[%clk 0:00:11]} 63. h7 {[%clk 0:00:04]} 1-0


[Site "https://www.chess.com"]

[Event "Titled Tuesday Blitz August 16 Late 2022"]
[White "Jorajuria Mendoza, Algol"]
[Black "Barria Zuniga, Daniel"]
[WhiteFideId "5128897"]
[BlackFideId "3400816"]
[WhiteElo "1600"]
[BlackElo "2414"]
[Result "0-1"]
[Round "09"]
[TimeControl "180+1"]
[Date "2022.08.18"]
[WhiteClock "0:00:00"]
[BlackClock "0:00:00"]

1. e4 {[%clk 0:00:00]}  c5 {[%clk 0:00:00]} 2. Nc3 {[%clk 0:00:00]}  Nc6 {[%clk 0:00:00]} 3. Bb5 {[%clk 0:00:00]}  Na5 {[%clk 0:00:00]} 4. Nf3 {[%clk 0:00:00]}  a6 {[%clk 0:00:00]} 5. Be2 {[%clk 0:00:00]}  b5 {[%clk 0:00:00]} 6. d4 {[%clk 0:00:00]}  cxd4 {[%clk 0:00:00]} 7. Nxd4 {[%clk 0:00:00]}  Bb7 {[%clk 0:00:00]} 8. O-O {[%clk 0:00:00]}  e6 {[%clk 0:00:00]} 9. Re1 {[%clk 0:00:00]}  Ne7 {[%clk 0:00:00]} 10. Bf3 {[%clk 0:00:00]}  Ng6 {[%clk 0:00:00]} 11. e5 {[%clk 0:00:00]}  Bxf3 {[%clk 0:00:00]} 12. Qxf3 {[%clk 0:00:00]}  Be7 {[%clk 0:00:00]} 13. Rb1 {[%clk 0:00:00]}  O-O {[%clk 0:00:00]} 14. b4 {[%clk 0:00:00]}  Nc4 {[%clk 0:00:00]} 15. a4 {[%clk 0:00:00]}  Ncxe5 {[%clk 0:00:00]} 16. Qg3 {[%clk 0:00:00]}  Qb8 {[%clk 0:00:00]} 17. axb5 {[%clk 0:00:00]}  axb5 {[%clk 0:00:00]} 18. Ndxb5 {[%clk 0:00:00]}  Rc8 {[%clk 0:00:00]} 19. Bf4 {[%clk 0:00:00]}  Nxf4 {[%clk 0:00:00]} 20. Qxf4 {[%clk 0:00:00]}  Nc4 {[%clk 0:00:00]} 21. Qg4 {[%clk 0:00:00]}  Bf8 {[%clk 0:00:00]} 22. Red1 {[%clk 0:00:00]}  d5 {[%clk 0:00:00]} 23. Rd3 {[%clk 0:00:00]}  Ne5 {[%clk 0:00:00]} 0-1


[Site "https://www.chess.com"]

[Event "Titled Tuesday Blitz August 16 Late 2022"]
[White "Kamsky, Gata"]
[Black "Amburgy, Ryan"]
[WhiteFideId "2000024"]
[BlackFideId "30924820"]
[WhiteElo "2666"]
[BlackElo "2066"]
[Result "1-0"]
[Round "09"]
[TimeControl "180+1"]
[Date "2022.08.16"]
[WhiteClock "0:00:35"]
[BlackClock "0:00:05"]

1. d4 {[%clk 0:03:00]}  Nf6 {[%clk 0:02:59]} 2. Nf3 {[%clk 0:02:59]}  b6 {[%clk 0:02:58]} 3. Bf4 {[%clk 0:02:58]}  Bb7 {[%clk 0:02:58]} 4. e3 {[%clk 0:02:57]}  Nh5 {[%clk 0:02:57]} 5. Bg5 {[%clk 0:02:49]}  h6 {[%clk 0:02:57]} 6. Bh4 {[%clk 0:02:50]}  g5 {[%clk 0:02:57]} 7. Nfd2 {[%clk 0:02:46]}  Nf4 {[%clk 0:02:58]} 8. exf4 {[%clk 0:02:42]}  gxh4 {[%clk 0:02:58]} 9. Nf3 {[%clk 0:02:39]}  e6 {[%clk 0:02:56]} 10. Nbd2 {[%clk 0:02:37]}  Qf6 {[%clk 0:02:48]} 11. g3 {[%clk 0:02:35]}  d6 {[%clk 0:02:42]} 12. Bb5+ {[%clk 0:02:32]}  Nd7 {[%clk 0:02:40]} 13. Qe2 {[%clk 0:02:31]}  O-O-O {[%clk 0:02:39]} 14. Ba6 {[%clk 0:02:28]}  hxg3 {[%clk 0:02:35]} 15. hxg3 {[%clk 0:02:27]}  Bg7 {[%clk 0:02:26]} 16. O-O-O {[%clk 0:02:13]}  Qf5 {[%clk 0:02:20]} 17. Bxb7+ {[%clk 0:02:10]}  Kxb7 {[%clk 0:02:21]} 18. Qe4+ {[%clk 0:01:59]}  Qxe4 {[%clk 0:02:21]} 19. Nxe4 {[%clk 0:01:58]}  f5 {[%clk 0:01:37]} 20. Nc3 {[%clk 0:01:54]}  Nf6 {[%clk 0:01:37]} 21. d5 {[%clk 0:01:52]}  Ne4 {[%clk 0:01:32]} 22. Nxe4 {[%clk 0:01:48]}  fxe4 {[%clk 0:01:33]} 23. Nh4 {[%clk 0:01:48]}  exd5 {[%clk 0:01:32]} 24. Nf5 {[%clk 0:01:45]}  Rd7 {[%clk 0:01:17]} 25. Rxd5 {[%clk 0:01:43]}  Kc6 {[%clk 0:01:14]} 26. c4 {[%clk 0:01:35]}  a5 {[%clk 0:01:03]} 27. a4 {[%clk 0:01:33]}  Rf7 {[%clk 0:00:57]} 28. Nxg7 {[%clk 0:01:25]}  Rxg7 {[%clk 0:00:58]} 29. Kd2 {[%clk 0:01:25]}  Rg6 {[%clk 0:00:49]} 30. Ke3 {[%clk 0:01:24]}  Re8 {[%clk 0:00:32]} 31. Rdh5 {[%clk 0:01:21]}  Rge6 {[%clk 0:00:28]} 32. b3 {[%clk 0:01:19]}  R6e7 {[%clk 0:00:23]} 33. Rxh6 {[%clk 0:01:01]}  Kc5 {[%clk 0:00:23]} 34. f5 {[%clk 0:01:00]}  Kb4 {[%clk 0:00:20]} 35. f6 {[%clk 0:00:58]}  Rf7 {[%clk 0:00:21]} 36. g4 {[%clk 0:00:51]}  Re5 {[%clk 0:00:15]} 37. Kf4 {[%clk 0:00:50]}  Kxb3 {[%clk 0:00:08]} 38. g5 {[%clk 0:00:50]}  Kxa4 {[%clk 0:00:07]} 39. Rh7 {[%clk 0:00:49]}  Rf8 {[%clk 0:00:07]} 40. Rxc7 {[%clk 0:00:48]}  Kb4 {[%clk 0:00:07]} 41. f7 {[%clk 0:00:45]}  Re6 {[%clk 0:00:06]} 42. Kf5 {[%clk 0:00:43]}  Re5+ {[%clk 0:00:06]} 43. Kf6 {[%clk 0:00:43]}  a4 {[%clk 0:00:07]} 44. g6 {[%clk 0:00:43]}  e3 {[%clk 0:00:04]} 45. g7 {[%clk 0:00:39]}  Rxf7+ {[%clk 0:00:04]} 46. Kxf7 {[%clk 0:00:38]}  exf2 {[%clk 0:00:05]} 47. g8=Q {[%clk 0:00:35]}  Re1 {[%clk 0:00:05]} 48. Qg2 {[%clk 0:00:35]} 1-0


[Site "https://www.chess.com"]

[Event "Titled Tuesday Blitz August 16 Late 2022"]
[White "Kobo, Ori"]
[Black "Goryachkina, Aleksandra"]
[WhiteFideId "2812320"]
[BlackFideId "4147103"]
[WhiteElo "2420"]
[BlackElo "2426"]
[Result "0-1"]
[Round "09"]
[TimeControl "180+1"]
[Date "2022.08.16"]
[WhiteClock "0:00:00"]
[BlackClock "0:00:03"]

1. c4 {[%clk 0:03:00]}  e6 {[%clk 0:02:59]} 2. Nc3 {[%clk 0:03:00]}  d5 {[%clk 0:02:59]} 3. d4 {[%clk 0:03:01]}  Nf6 {[%clk 0:02:59]} 4. cxd5 {[%clk 0:03:01]}  exd5 {[%clk 0:02:59]} 5. Bg5 {[%clk 0:03:00]}  c6 {[%clk 0:02:58]} 6. Qc2 {[%clk 0:03:00]}  g6 {[%clk 0:02:49]} 7. e3 {[%clk 0:02:36]}  Bg7 {[%clk 0:02:42]} 8. Bd3 {[%clk 0:02:34]}  O-O {[%clk 0:02:41]} 9. Nf3 {[%clk 0:02:31]}  Nbd7 {[%clk 0:02:38]} 10. O-O {[%clk 0:02:31]}  Re8 {[%clk 0:02:34]} 11. b4 {[%clk 0:02:31]}  h6 {[%clk 0:02:21]} 12. Bh4 {[%clk 0:02:31]}  Qe7 {[%clk 0:01:55]} 13. Qb3 {[%clk 0:02:09]}  Qe6 {[%clk 0:01:20]} 14. Nd2 {[%clk 0:01:58]}  Nh5 {[%clk 0:01:10]} 15. Rae1 {[%clk 0:01:46]}  g5 {[%clk 0:00:29]} 16. Bg3 {[%clk 0:01:46]}  f5 {[%clk 0:00:29]} 17. Qd1 {[%clk 0:01:33]}  Nxg3 {[%clk 0:00:26]} 18. hxg3 {[%clk 0:01:34]}  Nf6 {[%clk 0:00:24]} 19. b5 {[%clk 0:01:25]}  Qd6 {[%clk 0:00:21]} 20. Qc2 {[%clk 0:01:07]}  Ne4 {[%clk 0:00:20]} 21. Rc1 {[%clk 0:01:07]}  Bd7 {[%clk 0:00:18]} 22. bxc6 {[%clk 0:01:04]}  bxc6 {[%clk 0:00:18]} 23. Na4 {[%clk 0:01:05]}  Rab8 {[%clk 0:00:12]} 24. Nc5 {[%clk 0:01:04]}  Nxc5 {[%clk 0:00:11]} 25. Qxc5 {[%clk 0:00:59]}  Qxc5 {[%clk 0:00:11]} 26. Rxc5 {[%clk 0:01:00]}  Rb2 {[%clk 0:00:11]} 27. Nb3 {[%clk 0:00:50]}  Rxa2 {[%clk 0:00:11]} 28. Rfc1 {[%clk 0:00:46]}  Rb8 {[%clk 0:00:06]} 29. R5c3 {[%clk 0:00:44]}  f4 {[%clk 0:00:04]} 30. gxf4 {[%clk 0:00:42]}  gxf4 {[%clk 0:00:05]} 31. Nc5 {[%clk 0:00:38]}  Be8 {[%clk 0:00:04]} 32. Ne6 {[%clk 0:00:33]}  fxe3 {[%clk 0:00:04]} 33. fxe3 {[%clk 0:00:34]}  Rbb2 {[%clk 0:00:04]} 34. Bf1 {[%clk 0:00:30]}  a5 {[%clk 0:00:03]} 35. Nc7 {[%clk 0:00:27]}  Bd7 {[%clk 0:00:03]} 36. Na6 {[%clk 0:00:27]}  a4 {[%clk 0:00:03]} 37. Nc5 {[%clk 0:00:28]}  Be8 {[%clk 0:00:03]} 38. Nd3 {[%clk 0:00:27]}  Rd2 {[%clk 0:00:03]} 39. Nb4 {[%clk 0:00:25]}  Rab2 {[%clk 0:00:03]} 40. Nxc6 {[%clk 0:00:25]}  Bxc6 {[%clk 0:00:03]} 41. Rxc6 {[%clk 0:00:26]}  a3 {[%clk 0:00:03]} 42. Rc8+ {[%clk 0:00:21]}  Kh7 {[%clk 0:00:04]} 43. Ra8 {[%clk 0:00:19]}  a2 {[%clk 0:00:04]} 44. Ra1 {[%clk 0:00:19]}  Bf6 {[%clk 0:00:03]} 45. Ra7+ {[%clk 0:00:19]}  Kg6 {[%clk 0:00:03]} 46. Ra5 {[%clk 0:00:19]}  Bg5 {[%clk 0:00:03]} 47. Kh2 {[%clk 0:00:13]}  Bxe3 {[%clk 0:00:03]} 48. Ra6+ {[%clk 0:00:14]}  Kg5 {[%clk 0:00:03]} 49. Ra5 {[%clk 0:00:14]}  Bf4+ {[%clk 0:00:03]} 50. Kg1 {[%clk 0:00:12]}  Be3+ {[%clk 0:00:03]} 51. Kh2 {[%clk 0:00:12]}  Kf4 {[%clk 0:00:04]} 52. Rxd5 {[%clk 0:00:12]}  Rb1 {[%clk 0:00:04]} 53. Rxa2 {[%clk 0:00:08]}  Rxa2 {[%clk 0:00:04]} 54. Rd8 {[%clk 0:00:08]}  Rxf1 {[%clk 0:00:04]} 55. Rf8+ {[%clk 0:00:09]}  Kg4 {[%clk 0:00:03]} 56. Rxf1 {[%clk 0:00:10]}  Bxd4 {[%clk 0:00:03]} 57. Rf8 {[%clk 0:00:09]}  Be5+ {[%clk 0:00:03]} 58. Kg1 {[%clk 0:00:09]}  Bg3 {[%clk 0:00:03]} 59. Rg8+ {[%clk 0:00:07]}  Kh4 {[%clk 0:00:03]} 60. Kf1 {[%clk 0:00:07]}  Rf2+ {[%clk 0:00:03]} 61. Kg1 {[%clk 0:00:08]}  Ra2 {[%clk 0:00:03]} 62. Kf1 {[%clk 0:00:08]}  Ra1+ {[%clk 0:00:03]} 63. Ke2 {[%clk 0:00:08]}  Rg1 {[%clk 0:00:03]} 64. Kf3 {[%clk 0:00:08]}  Rf1+ {[%clk 0:00:04]} 65. Ke3 {[%clk 0:00:07]}  Rf2 {[%clk 0:00:02]} 66. Rg6 {[%clk 0:00:06]}  h5 {[%clk 0:00:02]} 67. Rh6 {[%clk 0:00:06]}  Rxg2 {[%clk 0:00:03]} 68. Rh8 {[%clk 0:00:06]}  Rg1 {[%clk 0:00:02]} 69. Kf3 {[%clk 0:00:06]}  Rf1+ {[%clk 0:00:03]} 70. Kg2 {[%clk 0:00:07]}  Rf2+ {[%clk 0:00:03]} 71. Kg1 {[%clk 0:00:07]}  Ra2 {[%clk 0:00:03]} 72. Rh7 {[%clk 0:00:07]}  Kg4 {[%clk 0:00:03]} 73. Kh1 {[%clk 0:00:05]}  Kf3 {[%clk 0:00:02]} 74. Rf7+ {[%clk 0:00:05]}  Bf4 {[%clk 0:00:02]} 75. Rg7 {[%clk 0:00:04]}  Ra1+ {[%clk 0:00:02]} 76. Rg1 {[%clk 0:00:04]}  Ra2 {[%clk 0:00:02]} 77. Rf1+ {[%clk 0:00:04]}  Kg4 {[%clk 0:00:02]} 78. Rg1+ {[%clk 0:00:05]}  Bg3 {[%clk 0:00:03]} 79. Rb1 {[%clk 0:00:05]}  Re2 {[%clk 0:00:02]} 80. Kg1 {[%clk 0:00:05]}  Bf4 {[%clk 0:00:03]} 81. Rb3 {[%clk 0:00:05]}  Be3+ {[%clk 0:00:02]} 82. Kf1 {[%clk 0:00:05]}  Kf3 {[%clk 0:00:02]} 83. Ra3 {[%clk 0:00:04]}  Rf2+ {[%clk 0:00:02]} 84. Ke1 {[%clk 0:00:05]}  Rh2 {[%clk 0:00:03]} 85. Kd1 {[%clk 0:00:05]}  Rh1+ {[%clk 0:00:03]} 86. Kc2 {[%clk 0:00:06]}  h4 {[%clk 0:00:03]} 87. Kd3 {[%clk 0:00:00]}  h3 {[%clk 0:00:03]} 0-1


[Site "https://www.chess.com"]

[Event "Titled Tuesday Blitz August 16 Late 2022"]
[White "Koepke, Christian"]
[Black "Urh, Zala"]
[WhiteFideId "4655737"]
[BlackFideId "14611481"]
[WhiteElo "2188"]
[BlackElo "2097"]
[Result "1-0"]
[Round "09"]
[TimeControl "180+1"]
[Date "2022.08.18"]
[WhiteClock "0:00:00"]
[BlackClock "0:00:00"]

1. d4 {[%clk 0:00:00]}  d5 {[%clk 0:00:00]} 2. e3 {[%clk 0:00:00]}  Nf6 {[%clk 0:00:00]} 3. Bd3 {[%clk 0:00:00]}  g6 {[%clk 0:00:00]} 4. Nf3 {[%clk 0:00:00]}  Bg7 {[%clk 0:00:00]} 5. O-O {[%clk 0:00:00]}  O-O {[%clk 0:00:00]} 6. b3 {[%clk 0:00:00]}  c5 {[%clk 0:00:00]} 7. Bb2 {[%clk 0:00:00]}  Nc6 {[%clk 0:00:00]} 8. dxc5 {[%clk 0:00:00]}  Bg4 {[%clk 0:00:00]} 9. Be2 {[%clk 0:00:00]}  Ne4 {[%clk 0:00:00]} 10. Bxg7 {[%clk 0:00:00]}  Kxg7 {[%clk 0:00:00]} 11. h3 {[%clk 0:00:00]}  Be6 {[%clk 0:00:00]} 12. c3 {[%clk 0:00:00]}  Nxc5 {[%clk 0:00:00]} 13. Nd4 {[%clk 0:00:00]}  Qd6 {[%clk 0:00:00]} 14. Nd2 {[%clk 0:00:00]}  Nxd4 {[%clk 0:00:00]} 15. cxd4 {[%clk 0:00:00]}  Nd7 {[%clk 0:00:00]} 16. Nf3 {[%clk 0:00:00]}  Rac8 {[%clk 0:00:00]} 17. Qd2 {[%clk 0:00:00]}  Bf5 {[%clk 0:00:00]} 18. Rfc1 {[%clk 0:00:00]}  Nf6 {[%clk 0:00:00]} 19. Ne5 {[%clk 0:00:00]}  Rxc1+ {[%clk 0:00:00]} 20. Rxc1 {[%clk 0:00:00]}  Rc8 {[%clk 0:00:00]} 21. Rxc8 {[%clk 0:00:00]}  Bxc8 {[%clk 0:00:00]} 22. Qa5 {[%clk 0:00:00]}  a6 {[%clk 0:00:00]} 23. Qc3 {[%clk 0:00:00]}  Bf5 {[%clk 0:00:00]} 24. g4 {[%clk 0:00:00]}  Be6 {[%clk 0:00:00]} 25. f3 {[%clk 0:00:00]}  Qa3 {[%clk 0:00:00]} 26. Qc2 {[%clk 0:00:00]}  h6 {[%clk 0:00:00]} 27. Kf2 {[%clk 0:00:00]}  Nh7 {[%clk 0:00:00]} 28. h4 {[%clk 0:00:00]}  Nf6 {[%clk 0:00:00]} 29. g5 {[%clk 0:00:00]}  hxg5 {[%clk 0:00:00]} 30. hxg5 {[%clk 0:00:00]}  Nh7 {[%clk 0:00:00]} 31. f4 {[%clk 0:00:00]}  Bf5 {[%clk 0:00:00]} 32. Bd3 {[%clk 0:00:00]}  Bxd3 {[%clk 0:00:00]} 33. Nxd3 {[%clk 0:00:00]}  f6 {[%clk 0:00:00]} 34. gxf6+ {[%clk 0:00:00]}  Nxf6 {[%clk 0:00:00]} 35. Nc5 {[%clk 0:00:00]}  Qb4 {[%clk 0:00:00]} 36. Ne6+ {[%clk 0:00:00]}  Kf7 {[%clk 0:00:00]} 37. Ng5+ {[%clk 0:00:00]}  Kg7 {[%clk 0:00:00]} 38. Ke2 {[%clk 0:00:00]}  Qd6 {[%clk 0:00:00]} 39. Qc8 {[%clk 0:00:00]}  Ne4 {[%clk 0:00:00]} 40. Nxe4 {[%clk 0:00:00]}  dxe4 {[%clk 0:00:00]} 41. Qxb7 {[%clk 0:00:00]}  Qe6 {[%clk 0:00:00]} 42. Kd2 {[%clk 0:00:00]}  Kh6 {[%clk 0:00:00]} 43. d5 {[%clk 0:00:00]}  Qh3 {[%clk 0:00:00]} 44. Qxe7 {[%clk 0:00:00]}  Qg2+ {[%clk 0:00:00]} 45. Kc3 {[%clk 0:00:00]}  Qxa2 {[%clk 0:00:00]} 46. Qxe4 {[%clk 0:00:00]}  Qa1+ {[%clk 0:00:00]} 47. Kc4 {[%clk 0:00:00]}  Qc1+ {[%clk 0:00:00]} 48. Kb4 {[%clk 0:00:00]}  Qd2+ {[%clk 0:00:00]} 49. Kc5 {[%clk 0:00:00]}  Qa5+ {[%clk 0:00:00]} 50. Kd6 {[%clk 0:00:00]}  Qd8+ {[%clk 0:00:00]} 51. Kc6 {[%clk 0:00:00]}  Qc8+ {[%clk 0:00:00]} 52. Kb6 {[%clk 0:00:00]}  Qb8+ {[%clk 0:00:00]} 53. Kxa6 {[%clk 0:00:00]}  Qa8+ {[%clk 0:00:00]} 54. Kb5 {[%clk 0:00:00]}  Qb8+ {[%clk 0:00:00]} 55. Kc4 {[%clk 0:00:00]}  Qc8+ {[%clk 0:00:00]} 56. Kd3 {[%clk 0:00:00]}  Qa6+ {[%clk 0:00:00]} 57. Qc4 {[%clk 0:00:00]}  Qf6 {[%clk 0:00:00]} 58. Qd4 {[%clk 0:00:00]}  Qd6 {[%clk 0:00:00]} 59. Qe5 {[%clk 0:00:00]}  Qa6+ {[%clk 0:00:00]} 60. Kd2 {[%clk 0:00:00]}  Qa2+ {[%clk 0:00:00]} 61. Ke1 {[%clk 0:00:00]}  Qxb3 {[%clk 0:00:00]} 62. d6 {[%clk 0:00:00]}  Qb4+ {[%clk 0:00:00]} 63. Kf2 {[%clk 0:00:00]}  Qb7 {[%clk 0:00:00]} 64. Qg5+ {[%clk 0:00:00]}  Kg7 {[%clk 0:00:00]} 65. Qe7+ {[%clk 0:00:00]}  Qxe7 {[%clk 0:00:00]} 66. dxe7 {[%clk 0:00:00]}  Kf7 {[%clk 0:00:00]} 67. Kf3 {[%clk 0:00:00]}  Kxe7 {[%clk 0:00:00]} 68. Kg4 {[%clk 0:00:00]}  Ke6 {[%clk 0:00:00]} 69. Kg5 {[%clk 0:00:00]}  Kf7 {[%clk 0:00:00]} 70. e4 {[%clk 0:00:00]}  Kg7 {[%clk 0:00:00]} 71. e5 {[%clk 0:00:00]}  Kf7 {[%clk 0:00:00]} 72. Kh6 {[%clk 0:00:00]}  g5 {[%clk 0:00:00]} 73. Kxg5 {[%clk 0:00:00]}  Ke6 {[%clk 0:00:00]} 74. Kg6 {[%clk 0:00:00]}  Ke7 {[%clk 0:00:00]} 75. f5 {[%clk 0:00:00]}  Ke8 {[%clk 0:00:00]} 76. e6 {[%clk 0:00:00]}  Kf8 {[%clk 0:00:00]} 77. Kf6 {[%clk 0:00:00]}  Ke8 {[%clk 0:00:00]} 78. e7 {[%clk 0:00:00]}  Kd7 {[%clk 0:00:00]} 79. Kf7 {[%clk 0:00:00]}  Kd6 {[%clk 0:00:00]} 80. e8=Q {[%clk 0:00:00]}  Kc5 {[%clk 0:00:00]} 81. Qe5+ {[%clk 0:00:00]}  Kc4 {[%clk 0:00:00]} 82. Ke6 {[%clk 0:00:00]} 1-0


[Site "https://www.chess.com"]

[Event "Titled Tuesday Blitz August 16 Late 2022"]
[White "Kopczynski, Michal"]
[Black "Kambrath, Yannick"]
[WhiteFideId "1124200"]
[BlackFideId "20632525"]
[WhiteElo "2235"]
[BlackElo "2236"]
[Result "1/2-1/2"]
[Round "09"]
[TimeControl "180+1"]
[Date "2022.08.16"]
[WhiteClock "0:00:31"]
[BlackClock "0:00:56"]

1. e4 {[%clk 0:02:56]}  c5 {[%clk 0:03:00]} 2. d4 {[%clk 0:02:56]}  e6 {[%clk 0:02:57]} 3. f4 {[%clk 0:02:52]}  cxd4 {[%clk 0:02:57]} 4. c3 {[%clk 0:02:53]}  Nf6 {[%clk 0:02:53]} 5. Bd3 {[%clk 0:02:51]}  b6 {[%clk 0:02:52]} 6. e5 {[%clk 0:02:48]}  Nd5 {[%clk 0:02:49]} 7. cxd4 {[%clk 0:02:46]}  Bb7 {[%clk 0:02:49]} 8. Nf3 {[%clk 0:02:46]}  Nc6 {[%clk 0:02:47]} 9. O-O {[%clk 0:02:46]}  g6 {[%clk 0:02:29]} 10. Nc3 {[%clk 0:02:46]}  Ncb4 {[%clk 0:02:24]} 11. Ne4 {[%clk 0:02:39]}  Nxd3 {[%clk 0:02:24]} 12. Qxd3 {[%clk 0:02:39]}  Be7 {[%clk 0:02:25]} 13. Nfg5 {[%clk 0:02:27]}  h6 {[%clk 0:02:22]} 14. Qh3 {[%clk 0:02:24]}  Kf8 {[%clk 0:02:14]} 15. Bd2 {[%clk 0:02:14]}  Kg7 {[%clk 0:02:14]} 16. Nf3 {[%clk 0:02:12]}  Rc8 {[%clk 0:02:08]} 17. Rac1 {[%clk 0:02:11]}  Nb4 {[%clk 0:02:05]} 18. Nd6 {[%clk 0:01:52]}  Bxd6 {[%clk 0:01:58]} 19. exd6 {[%clk 0:01:53]}  Rxc1 {[%clk 0:01:55]} 20. Rxc1 {[%clk 0:01:51]}  Bxf3 {[%clk 0:01:51]} 21. Bxb4 {[%clk 0:01:40]}  Bd5 {[%clk 0:01:50]} 22. Rc7 {[%clk 0:01:34]}  a5 {[%clk 0:01:49]} 23. Be1 {[%clk 0:01:33]}  Qf6 {[%clk 0:01:50]} 24. Qe3 {[%clk 0:01:23]}  Rd8 {[%clk 0:01:49]} 25. Qe5 {[%clk 0:01:20]}  g5 {[%clk 0:01:44]} 26. f5 {[%clk 0:00:39]}  Qxe5 {[%clk 0:01:31]} 27. dxe5 {[%clk 0:00:40]}  exf5 {[%clk 0:01:31]} 28. Bf2 {[%clk 0:00:37]}  Bxa2 {[%clk 0:01:27]} 29. Bxb6 {[%clk 0:00:37]}  Be6 {[%clk 0:01:09]} 30. Bxa5 {[%clk 0:00:36]}  Rb8 {[%clk 0:01:09]} 31. b4 {[%clk 0:00:36]}  Rb5 {[%clk 0:01:09]} 32. Rc5 {[%clk 0:00:33]}  Rxc5 {[%clk 0:01:08]} 33. bxc5 {[%clk 0:00:34]}  f6 {[%clk 0:01:08]} 34. exf6+ {[%clk 0:00:33]}  Kxf6 {[%clk 0:01:09]} 35. Bc3+ {[%clk 0:00:32]}  Kg6 {[%clk 0:01:10]} 36. Kf2 {[%clk 0:00:31]}  f4 {[%clk 0:01:10]} 37. g3 {[%clk 0:00:30]}  fxg3+ {[%clk 0:01:08]} 38. Kxg3 {[%clk 0:00:31]}  Kf5 {[%clk 0:01:09]} 39. h4 {[%clk 0:00:31]}  gxh4+ {[%clk 0:00:56]} 40. Kxh4 {[%clk 0:00:31]}  Ke4 {[%clk 0:00:53]} 41. Kh5 {[%clk 0:00:31]}  Kd5 {[%clk 0:00:53]} 42. Bf6 {[%clk 0:00:27]}  Kxc5 {[%clk 0:00:53]} 43. Be7 {[%clk 0:00:28]}  Kc6 {[%clk 0:00:52]} 44. Kxh6 {[%clk 0:00:28]}  Bd5 {[%clk 0:00:53]} 45. Kg5 {[%clk 0:00:29]}  Be6 {[%clk 0:00:54]} 46. Kh6 {[%clk 0:00:29]}  Bd5 {[%clk 0:00:55]} 47. Kg5 {[%clk 0:00:30]}  Be6 {[%clk 0:00:56]} 48. Kh6 {[%clk 0:00:31]} 1/2-1/2


[Site "https://www.chess.com"]